[Event "Early-Titled-Tuesday-Blitz-March-05-2024"]
[Site "Chess.com"]
[Date "2024.03.05"]
[Round "2"]
[White "erugee"]
[Black "chess_blitz00"]
[Result "0-1"]
[WhiteElo "2324"]
[BlackElo "2530"]
[TimeControl "180+1"]
[EndTime "8:18:49 PST"]
[Termination "chess_blitz00 won on time"]

1. e4 {[%clk 0:02:59.3]} 1... d6 {[%clk 0:02:52]} 2. d4 {[%clk 0:02:58.1]} 2...
e5 {[%clk 0:02:22.4]} 3. dxe5 {[%clk 0:02:56.4]} 3... dxe5 {[%clk 0:02:23.3]} 4.
Qxd8+ {[%clk 0:02:55.8]} 4... Kxd8 {[%clk 0:02:24.2]} 5. Be3 {[%clk 0:02:55.3]}
5... Be6 {[%clk 0:02:23.8]} 6. Nd2 {[%clk 0:02:54.6]} 6... Nd7 {[%clk
0:02:24.2]} 7. Bc4 {[%clk 0:02:54.4]} 7... Bxc4 {[%clk 0:02:21.9]} 8. Nxc4
{[%clk 0:02:54.6]} 8... Bd6 {[%clk 0:02:16.2]} 9. O-O-O {[%clk 0:02:52.9]} 9...
Ke7 {[%clk 0:02:16.8]} 10. Ne2 {[%clk 0:02:48.9]} 10... Ngf6 {[%clk 0:02:02.3]}
11. f3 {[%clk 0:02:42]} 11... b5 {[%clk 0:01:57.1]} 12. Na5 {[%clk 0:02:35.1]}
12... Rhe8 {[%clk 0:01:45.7]} 13. Nc6+ {[%clk 0:02:26.5]} 13... Kf8 {[%clk
0:01:45.8]} 14. g4 {[%clk 0:02:26.4]} 14... a5 {[%clk 0:01:41.9]} 15. g5 {[%clk
0:02:25]} 15... Nh5 {[%clk 0:01:41.7]} 16. Nc3 {[%clk 0:02:20.4]} 16... Ra6
{[%clk 0:01:39.6]} 17. Na7 {[%clk 0:02:18.3]} 17... b4 {[%clk 0:01:23.5]} 18.
Ncb5 {[%clk 0:02:17.3]} 18... Bc5 {[%clk 0:01:23.9]} 19. Bxc5+ {[%clk
0:02:09.8]} 19... Nxc5 {[%clk 0:01:24.8]} 20. Nxc7 {[%clk 0:02:09.8]} 20... Rxa7
{[%clk 0:01:22.4]} 21. Nxe8 {[%clk 0:02:09.8]} 21... Kxe8 {[%clk 0:01:23.3]} 22.
Rd5 {[%clk 0:02:08.4]} 22... Nd7 {[%clk 0:01:20.4]} 23. Rhd1 {[%clk 0:02:06.8]}
23... Nf4 {[%clk 0:01:20.1]} 24. Rb5 {[%clk 0:02:07.5]} 24... Ne2+ {[%clk
0:01:18.3]} 25. Kb1 {[%clk 0:02:05.9]} 25... Nd4 {[%clk 0:01:19.2]} 26. Rd5
{[%clk 0:01:55.1]} 26... Nxf3 {[%clk 0:01:19.2]} 27. Rf1 {[%clk 0:01:39.5]}
27... Nxg5 {[%clk 0:01:16.7]} 28. Rg1 {[%clk 0:01:38.9]} 28... Ne6 {[%clk
0:01:16.3]} 29. c3 {[%clk 0:01:28.7]} 29... bxc3 {[%clk 0:01:15.8]} 30. bxc3
{[%clk 0:01:28.8]} 30... Ke7 {[%clk 0:01:13.1]} 31. Kc2 {[%clk 0:01:28.3]} 31...
g6 {[%clk 0:01:04.6]} 32. Rb1 {[%clk 0:01:16.6]} 32... f6 {[%clk 0:01:02.9]} 33.
Rbb5 {[%clk 0:01:13.4]} 33... a4 {[%clk 0:00:55.4]} 34. Ra5 {[%clk 0:01:13.4]}
34... Rxa5 {[%clk 0:00:55.4]} 35. Rxa5 {[%clk 0:01:12.7]} 35... Nec5 {[%clk
0:00:52.3]} 36. Ra8 {[%clk 0:01:02.5]} 36... h5 {[%clk 0:00:50.8]} 37. c4 {[%clk
0:00:53.9]} 37... Nb6 {[%clk 0:00:46.4]} 38. Ra7+ {[%clk 0:00:49.7]} 38... Kd6
{[%clk 0:00:45]} 39. Kc3 {[%clk 0:00:42.2]} 39... Nxe4+ {[%clk 0:00:37.6]} 40.
Kb4 {[%clk 0:00:42.6]} 40... Nc5 {[%clk 0:00:38.3]} 41. Rg7 {[%clk 0:00:28.1]}
41... g5 {[%clk 0:00:34.5]} 42. Kb5 {[%clk 0:00:22.6]} 42... Nbd7 {[%clk
0:00:34.5]} 43. Rh7 {[%clk 0:00:20.9]} 43... h4 {[%clk 0:00:30.5]} 44. Rh8
{[%clk 0:00:17]} 44... e4 {[%clk 0:00:31]} 45. Re8 {[%clk 0:00:16.5]} 45... g4
{[%clk 0:00:25.9]} 46. Rg8 {[%clk 0:00:12.6]} 46... f5 {[%clk 0:00:25.5]} 47.
Rg6+ {[%clk 0:00:13.2]} 47... Ke5 {[%clk 0:00:25.3]} 48. Kc6 {[%clk 0:00:12.9]}
48... e3 {[%clk 0:00:25.3]} 49. Rg8 {[%clk 0:00:09]} 49... Ne4 {[%clk
0:00:21.1]} 50. Re8+ {[%clk 0:00:08.9]} 50... Kf4 {[%clk 0:00:20.9]} 0-1

[Event "Early-Titled-Tuesday-Blitz-March-05-2024"]
[Site "Chess.com"]
[Date "2024.03.05"]
[Round "2"]
[White "ValentunHulka"]
[Black "ljuks68"]
[Result "1-0"]
[WhiteElo "2775"]
[BlackElo "2406"]
[TimeControl "180+1"]
[EndTime "8:18:50 PST"]
[Termination "ValentunHulka won on time"]

1. Nc3 {[%clk 0:03:00.9]} 1... e6 {[%clk 0:02:59.4]} 2. e4 {[%clk 0:03:00.9]}
2... d5 {[%clk 0:02:59.8]} 3. d4 {[%clk 0:03:01.2]} 3... Bb4 {[%clk 0:02:59.4]}
4. a3 {[%clk 0:02:57.6]} 4... Bxc3+ {[%clk 0:02:58.9]} 5. bxc3 {[%clk
0:02:58.5]} 5... Ne7 {[%clk 0:02:59.2]} 6. Bd3 {[%clk 0:02:56.7]} 6... c5 {[%clk
0:02:52.6]} 7. Nf3 {[%clk 0:02:46.5]} 7... O-O {[%clk 0:02:26.4]} 8. O-O {[%clk
0:02:46.2]} 8... b6 {[%clk 0:02:16.5]} 9. exd5 {[%clk 0:02:22.4]} 9... exd5
{[%clk 0:02:12.4]} 10. c4 {[%clk 0:02:15.7]} 10... dxc4 {[%clk 0:01:25.3]} 11.
Be4 {[%clk 0:02:14.9]} 11... Nbc6 {[%clk 0:01:14.1]} 12. d5 {[%clk 0:02:14.1]}
12... f5 {[%clk 0:01:14.1]} 13. dxc6 {[%clk 0:01:45.8]} 13... fxe4 {[%clk
0:01:08]} 14. Ne5 {[%clk 0:01:46.2]} 14... Qxd1 {[%clk 0:00:54]} 15. Rxd1 {[%clk
0:01:45.9]} 15... Bf5 {[%clk 0:00:54.6]} 16. Bg5 {[%clk 0:01:45.1]} 16... Ng6
{[%clk 0:00:49]} 17. Nxc4 {[%clk 0:01:31.9]} 17... Rac8 {[%clk 0:00:34.5]} 18.
Rd6 {[%clk 0:01:30.2]} 18... h6 {[%clk 0:00:26.2]} 19. Ne3 {[%clk 0:01:26.3]}
19... hxg5 {[%clk 0:00:20.4]} 20. Nxf5 {[%clk 0:01:26.4]} 20... Rxf5 {[%clk
0:00:20.6]} 21. Rxg6 {[%clk 0:01:27.1]} 21... Rf6 {[%clk 0:00:18]} 22. Rxg5
{[%clk 0:01:26.4]} 22... Rcxc6 {[%clk 0:00:18.7]} 23. Rd5 {[%clk 0:01:26.3]}
23... Rcd6 {[%clk 0:00:17.8]} 24. Rad1 {[%clk 0:01:27]} 24... Rxd5 {[%clk
0:00:17.1]} 25. Rxd5 {[%clk 0:01:27.9]} 25... Re6 {[%clk 0:00:17.4]} 26. Kf1
{[%clk 0:01:27.5]} 26... Kf7 {[%clk 0:00:17.3]} 27. Ke2 {[%clk 0:01:27.9]} 27...
Kf6 {[%clk 0:00:17.3]} 28. Ke3 {[%clk 0:01:28.2]} 28... a5 {[%clk 0:00:17.7]}
29. c4 {[%clk 0:01:26.9]} 29... g6 {[%clk 0:00:16.6]} 30. h4 {[%clk 0:01:24]}
30... Kf7 {[%clk 0:00:14.1]} 31. g4 {[%clk 0:01:22.2]} 31... Kf6 {[%clk
0:00:14.1]} 32. Kf4 {[%clk 0:01:15.6]} 32... Kf7 {[%clk 0:00:12.9]} 33. g5
{[%clk 0:01:12]} 33... Re8 {[%clk 0:00:08.5]} 34. Rd6 {[%clk 0:01:09.7]} 34...
Re7 {[%clk 0:00:05.9]} 35. Rf6+ {[%clk 0:01:06.4]} 35... Kg7 {[%clk 0:00:06]}
36. Rxb6 {[%clk 0:01:06.7]} 36... Rd7 {[%clk 0:00:06.6]} 37. Kxe4 {[%clk
0:01:06.6]} 37... Rd4+ {[%clk 0:00:06.9]} 38. Ke3 {[%clk 0:01:05.1]} 38... Rxh4
{[%clk 0:00:06.3]} 39. f4 {[%clk 0:00:59]} 39... Rh3+ {[%clk 0:00:05.6]} 40. Ke4
{[%clk 0:00:59.9]} 40... Rxa3 {[%clk 0:00:05.8]} 41. Rb5 {[%clk 0:01:00.6]}
41... Rc3 {[%clk 0:00:04.6]} 42. Rxc5 {[%clk 0:01:00.4]} 42... a4 {[%clk
0:00:05.1]} 43. Kd4 {[%clk 0:01:00.4]} 43... Rf3 {[%clk 0:00:05.2]} 44. Ke5
{[%clk 0:00:57.3]} 44... Re3+ {[%clk 0:00:03.9]} 45. Kd5 {[%clk 0:00:55.1]}
45... Rf3 {[%clk 0:00:04.3]} 46. Ra5 {[%clk 0:00:50]} 46... Rxf4 {[%clk
0:00:04.1]} 47. Rxa4 {[%clk 0:00:46.9]} 47... Rf5+ {[%clk 0:00:04.5]} 48. Kd6
{[%clk 0:00:45.3]} 48... Rxg5 {[%clk 0:00:04.8]} 49. c5 {[%clk 0:00:46.2]} 49...
Rg1 {[%clk 0:00:04]} 50. c6 {[%clk 0:00:44]} 50... Rc1 {[%clk 0:00:03.6]} 51.
Ra5 {[%clk 0:00:41.5]} 51... Kf6 {[%clk 0:00:01.4]} 52. Rc5 {[%clk 0:00:42.1]}
52... Rd1+ {[%clk 0:00:01.9]} 53. Kc7 {[%clk 0:00:41.4]} 53... g5 {[%clk
0:00:01.7]} 54. Kb8 {[%clk 0:00:42.3]} 54... Rh1 {[%clk 0:00:01.6]} 55. c7
{[%clk 0:00:43.2]} 55... Rh8+ {[%clk 0:00:02]} 56. Kb7 {[%clk 0:00:43.6]} 56...
Kg6 {[%clk 0:00:01.6]} 57. Kc6 {[%clk 0:00:42.2]} 57... Kh5 {[%clk 0:00:01.5]}
58. Kd5 {[%clk 0:00:42.6]} 58... Kh4 {[%clk 0:00:02]} 59. c8=Q {[%clk
0:00:39.4]} 59... Rxc8 {[%clk 0:00:01.8]} 60. Rxc8 {[%clk 0:00:40.3]} 60... g4
{[%clk 0:00:02.4]} 61. Ke4 {[%clk 0:00:40.7]} 1-0

[Event "Early-Titled-Tuesday-Blitz-March-05-2024"]
[Site "Chess.com"]
[Date "2024.03.05"]
[Round "2"]
[White "Juicy_Fork"]
[Black "lamomiajunior"]
[Result "1-0"]
[WhiteElo "2544"]
[BlackElo "2745"]
[TimeControl "180+1"]
[EndTime "8:18:51 PST"]
[Termination "Juicy_Fork won by resignation"]

1. e4 {[%clk 0:03:00.9]} 1... c5 {[%clk 0:02:57.9]} 2. Nf3 {[%clk 0:03:00.8]}
2... d6 {[%clk 0:02:58.2]} 3. d4 {[%clk 0:03:01]} 3... cxd4 {[%clk 0:02:59.1]}
4. Nxd4 {[%clk 0:03:01.3]} 4... Nf6 {[%clk 0:02:59.6]} 5. Nc3 {[%clk 0:03:01.5]}
5... a6 {[%clk 0:03:00.1]} 6. Bd3 {[%clk 0:03:02.2]} 6... g6 {[%clk 0:02:56.6]}
7. f3 {[%clk 0:03:01]} 7... Qb6 {[%clk 0:02:56.5]} 8. Nb3 {[%clk 0:02:59.2]}
8... Bg7 {[%clk 0:02:55.9]} 9. Qe2 {[%clk 0:02:59.5]} 9... Nc6 {[%clk
0:02:53.6]} 10. Be3 {[%clk 0:02:59.2]} 10... Qc7 {[%clk 0:02:53.9]} 11. O-O-O
{[%clk 0:02:57.2]} 11... b5 {[%clk 0:02:54.4]} 12. g4 {[%clk 0:02:55.2]} 12...
Be6 {[%clk 0:02:52.5]} 13. g5 {[%clk 0:02:54.1]} 13... Nd7 {[%clk 0:02:52.6]}
14. f4 {[%clk 0:02:30.7]} 14... Nb4 {[%clk 0:02:44.1]} 15. Bd4 {[%clk
0:01:47.2]} 15... Bxd4 {[%clk 0:02:18]} 16. Nxd4 {[%clk 0:01:47]} 16... Bxa2
{[%clk 0:02:13.8]} 17. Nxa2 {[%clk 0:01:12.3]} 17... Nxa2+ {[%clk 0:02:12.5]}
18. Kb1 {[%clk 0:01:12.8]} 18... Nb4 {[%clk 0:02:13.1]} 19. h4 {[%clk
0:01:09.8]} 19... Qa5 {[%clk 0:02:11.8]} 20. Nb3 {[%clk 0:01:02.2]} 20... Qa2+
{[%clk 0:02:10.7]} 21. Kc1 {[%clk 0:01:02.5]} 21... Rc8 {[%clk 0:02:11.4]} 22.
h5 {[%clk 0:01:00.1]} 22... Qxb3 {[%clk 0:02:10.1]} 23. hxg6 {[%clk 0:00:57.5]}
23... fxg6 {[%clk 0:02:03.4]} 24. e5 {[%clk 0:00:55.9]} 24... Na2+ {[%clk
0:01:58]} 25. Kd2 {[%clk 0:00:41.9]} 25... Qb4+ {[%clk 0:01:58.1]} 26. Ke3
{[%clk 0:00:40.6]} 26... dxe5 {[%clk 0:01:58.4]} 27. Bxg6+ {[%clk 0:00:37.5]}
27... hxg6 {[%clk 0:01:16.7]} 28. Rxh8+ {[%clk 0:00:36.8]} 28... Kf7 {[%clk
0:01:17.4]} 29. Rh4 {[%clk 0:00:08.7]} 29... Nf8 {[%clk 0:01:10.8]} 30. Rf1
{[%clk 0:00:05.8]} 30... Qd4+ {[%clk 0:01:06.6]} 31. Kf3 {[%clk 0:00:05.8]}
31... e4+ {[%clk 0:00:59.1]} 32. Kg3 {[%clk 0:00:03.8]} 32... Nb4 {[%clk
0:00:57.8]} 33. f5 {[%clk 0:00:03.8]} 33... Qe5+ {[%clk 0:00:52.4]} 34. Kg2
{[%clk 0:00:03.9]} 34... gxf5 {[%clk 0:00:51.8]} 35. Qh5+ {[%clk 0:00:03.7]}
35... Ke6 {[%clk 0:00:49.4]} 36. Qh6+ {[%clk 0:00:03.3]} 36... Kd7 {[%clk
0:00:49.6]} 37. Rd1+ {[%clk 0:00:03.5]} 37... Nd5 {[%clk 0:00:49.4]} 38. c3
{[%clk 0:00:02.8]} 38... Kc7 {[%clk 0:00:47.8]} 39. g6 {[%clk 0:00:02.2]} 39...
Ne3+ {[%clk 0:00:47.7]} 40. Qxe3 {[%clk 0:00:02]} 40... Nxg6 {[%clk 0:00:48]}
41. Rh3 {[%clk 0:00:02.5]} 41... Nf4+ {[%clk 0:00:48.4]} 42. Kf1 {[%clk
0:00:03]} 42... Nxh3 {[%clk 0:00:47.7]} 43. Qa7+ {[%clk 0:00:03.2]} 43... Kc6
{[%clk 0:00:47.7]} 44. Qxa6+ {[%clk 0:00:03.9]} 44... Kc7 {[%clk 0:00:48]} 45.
Qa7+ {[%clk 0:00:04.3]} 45... Kc6 {[%clk 0:00:48.3]} 46. Qd7+ {[%clk 0:00:04.6]}
46... Kb6 {[%clk 0:00:48.2]} 47. Qxc8 {[%clk 0:00:04.2]} 47... Qf4+ {[%clk
0:00:48.8]} 48. Kg2 {[%clk 0:00:04.6]} 48... Qf3+ {[%clk 0:00:48.7]} 49. Kh2
{[%clk 0:00:04.3]} 49... Qxd1 {[%clk 0:00:44.7]} 50. Qb8+ {[%clk 0:00:04.5]}
50... Kc5 {[%clk 0:00:44.7]} 51. Qc7+ {[%clk 0:00:04]} 51... Kd5 {[%clk
0:00:44.6]} 52. Qd7+ {[%clk 0:00:04.6]} 52... Kc4 {[%clk 0:00:45.1]} 53. Qxd1
{[%clk 0:00:05.5]} 53... Nf2 {[%clk 0:00:43.6]} 54. Qf1+ {[%clk 0:00:05.8]}
54... Nd3 {[%clk 0:00:42.6]} 55. Qxf5 {[%clk 0:00:06.1]} 55... Nc5 {[%clk
0:00:42.8]} 56. Qe5 {[%clk 0:00:05.6]} 56... e6 {[%clk 0:00:40.7]} 57. Qd4+
{[%clk 0:00:05.9]} 57... Kb3 {[%clk 0:00:40.2]} 58. Qxc5 {[%clk 0:00:06.8]}
58... e3 {[%clk 0:00:40.7]} 59. Qxe3 {[%clk 0:00:06.9]} 1-0

[Event "Early-Titled-Tuesday-Blitz-March-05-2024"]
[Site "Chess.com"]
[Date "2024.03.05"]
[Round "2"]
[White "maciek_92"]
[Black "Pedrada88"]
[Result "1-0"]
[WhiteElo "2872"]
[BlackElo "2577"]
[TimeControl "180+1"]
[EndTime "8:18:52 PST"]
[Termination "maciek_92 won by resignation"]

1. c4 {[%clk 0:03:00.9]} 1... e5 {[%clk 0:02:59]} 2. Nc3 {[%clk 0:03:00.2]} 2...
Bb4 {[%clk 0:02:59.2]} 3. Qb3 {[%clk 0:02:59.5]} 3... Nc6 {[%clk 0:02:56.6]} 4.
Nf3 {[%clk 0:02:59]} 4... Nf6 {[%clk 0:02:51.8]} 5. a3 {[%clk 0:02:48.1]} 5...
Bxc3 {[%clk 0:02:51.4]} 6. Qxc3 {[%clk 0:02:49]} 6... O-O {[%clk 0:02:47.1]} 7.
e3 {[%clk 0:02:45.8]} 7... d5 {[%clk 0:02:43.6]} 8. cxd5 {[%clk 0:02:46.7]} 8...
Nxd5 {[%clk 0:02:42.3]} 9. Qc2 {[%clk 0:02:47]} 9... Re8 {[%clk 0:02:38.5]} 10.
Be2 {[%clk 0:02:30.9]} 10... e4 {[%clk 0:02:35.6]} 11. Ng1 {[%clk 0:02:24.8]}
11... Bf5 {[%clk 0:02:28.5]} 12. b4 {[%clk 0:02:15.6]} 12... Ne5 {[%clk
0:02:22.9]} 13. Bb2 {[%clk 0:02:13.6]} 13... Nd3+ {[%clk 0:02:16.6]} 14. Bxd3
{[%clk 0:02:12.9]} 14... exd3 {[%clk 0:02:17.5]} 15. Qb3 {[%clk 0:02:06.6]}
15... Nf4 {[%clk 0:02:03.3]} 16. g3 {[%clk 0:02:00.2]} 16... Be4 {[%clk
0:01:53.9]} 17. f3 {[%clk 0:01:59.9]} 17... Bd5 {[%clk 0:01:34.8]} 18. Qc3
{[%clk 0:01:56.6]} 18... Ne6 {[%clk 0:01:32.3]} 19. Qxd3 {[%clk 0:01:50.1]}
19... a5 {[%clk 0:01:31.9]} 20. e4 {[%clk 0:01:34.6]} 20... axb4 {[%clk
0:01:17.3]} 21. Qxd5 {[%clk 0:01:24.6]} 21... Qxd5 {[%clk 0:01:05.7]} 22. exd5
{[%clk 0:01:25.5]} 22... Nf4+ {[%clk 0:01:05.8]} 23. Kf1 {[%clk 0:01:20.9]}
23... Nd3 {[%clk 0:00:59.6]} 24. Bd4 {[%clk 0:01:20.3]} 24... Rxa3 {[%clk
0:00:50.8]} 25. Rxa3 {[%clk 0:00:51.5]} 25... Re1+ {[%clk 0:00:50.8]} 26. Kg2
{[%clk 0:00:52.1]} 26... bxa3 {[%clk 0:00:51.5]} 27. Nh3 {[%clk 0:00:52.8]}
27... Re2+ {[%clk 0:00:48]} 28. Nf2 {[%clk 0:00:52.3]} 28... Rxd2 {[%clk
0:00:43.8]} 29. Ra1 {[%clk 0:00:48.3]} 29... a2 {[%clk 0:00:40.7]} 30. Kf1
{[%clk 0:00:40.3]} 30... Nxf2 {[%clk 0:00:31.5]} 31. Bxf2 {[%clk 0:00:39.2]}
31... b5 {[%clk 0:00:32]} 32. Bc5 {[%clk 0:00:34.3]} 32... Rxh2 {[%clk
0:00:23.8]} 33. Bf2 {[%clk 0:00:31.8]} 33... Rh1+ {[%clk 0:00:16.8]} 34. Bg1
{[%clk 0:00:31.6]} 34... Rh5 {[%clk 0:00:16.1]} 35. Rxa2 {[%clk 0:00:31.9]}
35... h6 {[%clk 0:00:16.6]} 36. Rd2 {[%clk 0:00:29.8]} 36... Rf5 {[%clk
0:00:15.2]} 37. Ke2 {[%clk 0:00:28.7]} 37... g5 {[%clk 0:00:15.4]} 38. Bc5
{[%clk 0:00:23.9]} 38... h5 {[%clk 0:00:14.1]} 39. Ke3 {[%clk 0:00:21.8]} 39...
h4 {[%clk 0:00:12.9]} 40. gxh4 {[%clk 0:00:19.1]} 40... gxh4 {[%clk 0:00:13.8]}
41. Ke4 {[%clk 0:00:19.6]} 41... Rh5 {[%clk 0:00:11.2]} 42. Be3 {[%clk
0:00:19.7]} 42... h3 {[%clk 0:00:11.2]} 43. Bf4 {[%clk 0:00:20.5]} 43... Kg7
{[%clk 0:00:08]} 44. Bxc7 {[%clk 0:00:20.5]} 44... b4 {[%clk 0:00:07.6]} 45. Bf4
{[%clk 0:00:19.3]} 45... Kg6 {[%clk 0:00:05]} 46. d6 {[%clk 0:00:19.5]} 46...
f5+ {[%clk 0:00:04.1]} 47. Ke5 {[%clk 0:00:19.5]} 47... Rh8 {[%clk 0:00:02.3]}
48. d7 {[%clk 0:00:20]} 48... Rd8 {[%clk 0:00:02.5]} 49. Ke6 {[%clk 0:00:20.6]}
49... b3 {[%clk 0:00:01.9]} 50. Ke7 {[%clk 0:00:20.3]} 50... Rb8 {[%clk
0:00:01.7]} 51. Bxb8 {[%clk 0:00:19.5]} 51... h2 {[%clk 0:00:02]} 52. Bxh2
{[%clk 0:00:20.1]} 52... b2 {[%clk 0:00:01.6]} 53. Rxb2 {[%clk 0:00:21]} 1-0

[Event "Early-Titled-Tuesday-Blitz-March-05-2024"]
[Site "Chess.com"]
[Date "2024.03.05"]
[Round "2"]
[White "marik_spb"]
[Black "Christian_Jordan"]
[Result "1-0"]
[WhiteElo "2460"]
[BlackElo "2136"]
[TimeControl "180+1"]
[EndTime "8:18:52 PST"]
[Termination "marik_spb won on time"]

1. d4 {[%clk 0:02:59.7]} 1... e6 {[%clk 0:02:59.1]} 2. c4 {[%clk 0:02:57.8]}
2... b6 {[%clk 0:02:58.5]} 3. Nf3 {[%clk 0:02:57.6]} 3... Bb7 {[%clk 0:02:57.4]}
4. Nc3 {[%clk 0:02:56.9]} 4... f5 {[%clk 0:02:54]} 5. g3 {[%clk 0:02:53.6]} 5...
Nf6 {[%clk 0:02:51.4]} 6. Bg2 {[%clk 0:02:53.6]} 6... g6 {[%clk 0:02:50.8]} 7.
O-O {[%clk 0:02:53.7]} 7... Bg7 {[%clk 0:02:50.5]} 8. Bg5 {[%clk 0:02:45.2]}
8... O-O {[%clk 0:02:47.4]} 9. d5 {[%clk 0:02:39.1]} 9... Na6 {[%clk 0:02:36.2]}
10. Nd4 {[%clk 0:01:50]} 10... e5 {[%clk 0:02:14.4]} 11. Ndb5 {[%clk 0:01:35.1]}
11... d6 {[%clk 0:02:08.9]} 12. e4 {[%clk 0:01:22.9]} 12... Nc5 {[%clk
0:01:55.8]} 13. b4 {[%clk 0:01:03.9]} 13... Ncxe4 {[%clk 0:01:45.2]} 14. Nxe4
{[%clk 0:01:03.7]} 14... fxe4 {[%clk 0:01:44.4]} 15. Nc3 {[%clk 0:01:04]} 15...
h6 {[%clk 0:01:36]} 16. Bxf6 {[%clk 0:00:57.9]} 16... Qxf6 {[%clk 0:01:34.5]}
17. Nxe4 {[%clk 0:00:57.7]} 17... Qe7 {[%clk 0:01:33.2]} 18. Qd2 {[%clk
0:00:52.4]} 18... Kh7 {[%clk 0:01:31.5]} 19. Rae1 {[%clk 0:00:41.8]} 19... Qf7
{[%clk 0:01:19.2]} 20. f4 {[%clk 0:00:21.2]} 20... exf4 {[%clk 0:01:09.9]} 21.
Rxf4 {[%clk 0:00:21.8]} 21... Qg8 {[%clk 0:01:09.9]} 22. Ref1 {[%clk 0:00:21.5]}
22... Rxf4 {[%clk 0:01:05.8]} 23. Qxf4 {[%clk 0:00:22.4]} 23... Rf8 {[%clk
0:01:03.1]} 24. Qxf8 {[%clk 0:00:20.6]} 24... Qxf8 {[%clk 0:00:53.8]} 25. Rxf8
{[%clk 0:00:21.1]} 25... Bxf8 {[%clk 0:00:53.8]} 26. Nf6+ {[%clk 0:00:21.6]}
26... Kh8 {[%clk 0:00:36]} 27. Ne8 {[%clk 0:00:22.2]} 27... Bg7 {[%clk
0:00:16.1]} 28. Nxc7 {[%clk 0:00:19.8]} 28... Bd4+ {[%clk 0:00:15.2]} 29. Kf1
{[%clk 0:00:18.7]} 29... a5 {[%clk 0:00:14.9]} 30. a3 {[%clk 0:00:07.9]} 30...
axb4 {[%clk 0:00:14.4]} 31. axb4 {[%clk 0:00:08.8]} 31... Kg8 {[%clk 0:00:14.7]}
32. Ke2 {[%clk 0:00:07.9]} 32... Kf7 {[%clk 0:00:14.4]} 33. Be4 {[%clk
0:00:06.9]} 33... Kf6 {[%clk 0:00:13.3]} 34. h3 {[%clk 0:00:06.8]} 34... g5
{[%clk 0:00:12.2]} 35. Kd3 {[%clk 0:00:06.4]} 35... Bf2 {[%clk 0:00:10.7]} 36.
g4 {[%clk 0:00:06.8]} 36... Ke5 {[%clk 0:00:10.7]} 37. Bf5 {[%clk 0:00:06.7]}
37... Kf4 {[%clk 0:00:09.8]} 38. Ne8 {[%clk 0:00:07.2]} 38... Be1 {[%clk
0:00:04.5]} 39. Nxd6 {[%clk 0:00:06.4]} 39... Ba8 {[%clk 0:00:04.4]} 40. c5
{[%clk 0:00:05.7]} 40... Bxb4 {[%clk 0:00:02.8]} 41. Ne4 {[%clk 0:00:05.1]}
41... bxc5 {[%clk 0:00:01]} 42. d6 {[%clk 0:00:04.2]} 1-0

[Event "Early-Titled-Tuesday-Blitz-March-05-2024"]
[Site "Chess.com"]
[Date "2024.03.05"]
[Round "2"]
[White "Sajith_Peiris"]
[Black "DeArron_Fox"]
[Result "0-1"]
[WhiteElo "2241"]
[BlackElo "2487"]
[TimeControl "180+1"]
[EndTime "8:18:54 PST"]
[Termination "DeArron_Fox won by resignation"]

1. e4 {[%clk 0:03:00.9]} 1... c5 {[%clk 0:02:59.6]} 2. Nc3 {[%clk 0:02:59.4]}
2... e6 {[%clk 0:02:59.2]} 3. Nf3 {[%clk 0:02:57.7]} 3... a6 {[%clk 0:02:58.3]}
4. d4 {[%clk 0:02:54.3]} 4... cxd4 {[%clk 0:02:59.2]} 5. Nxd4 {[%clk 0:02:54.5]}
5... b5 {[%clk 0:02:59.7]} 6. Bd3 {[%clk 0:02:49.6]} 6... Bb7 {[%clk 0:03:00.2]}
7. O-O {[%clk 0:02:48]} 7... Nc6 {[%clk 0:03:00.2]} 8. Be3 {[%clk 0:02:40.6]}
8... Qc7 {[%clk 0:02:48.6]} 9. Nf3 {[%clk 0:02:12.3]} 9... Nf6 {[%clk
0:02:38.6]} 10. Re1 {[%clk 0:02:07.8]} 10... Ng4 {[%clk 0:01:40.4]} 11. Qd2
{[%clk 0:01:43.2]} 11... Bd6 {[%clk 0:01:09.1]} 12. e5 {[%clk 0:00:34.5]} 12...
Ncxe5 {[%clk 0:00:59.5]} 13. Nxe5 {[%clk 0:00:32.5]} 13... Bxe5 {[%clk
0:00:56.9]} 14. f4 {[%clk 0:00:28.6]} 14... Bd6 {[%clk 0:00:18.6]} 15. Ne4
{[%clk 0:00:26.7]} 15... Bxe4 {[%clk 0:00:10.4]} 16. Bxe4 {[%clk 0:00:25.9]}
16... Nxe3 {[%clk 0:00:10.1]} 17. Rxe3 {[%clk 0:00:15.5]} 17... Bxf4 {[%clk
0:00:08]} 18. Bxa8 {[%clk 0:00:12.6]} 18... Qa7 {[%clk 0:00:08]} 19. Qd3 {[%clk
0:00:02.8]} 19... Bxe3+ {[%clk 0:00:05.1]} 20. Kh1 {[%clk 0:00:03]} 20... Qxa8
{[%clk 0:00:04.9]} 21. Qxe3 {[%clk 0:00:03.4]} 21... O-O {[%clk 0:00:05.4]} 22.
Rf1 {[%clk 0:00:03.5]} 22... d5 {[%clk 0:00:05.4]} 23. Qd3 {[%clk 0:00:03.7]}
23... Qc6 {[%clk 0:00:05.9]} 24. h3 {[%clk 0:00:04.1]} 24... Qc4 {[%clk
0:00:05.7]} 25. Qxc4 {[%clk 0:00:03.6]} 25... bxc4 {[%clk 0:00:06.6]} 26. b3
{[%clk 0:00:03.3]} 26... Rc8 {[%clk 0:00:03]} 27. b4 {[%clk 0:00:02.3]} 27...
Rb8 {[%clk 0:00:02.8]} 28. a3 {[%clk 0:00:02.3]} 28... d4 {[%clk 0:00:02.7]} 29.
Rd1 {[%clk 0:00:01.5]} 29... e5 {[%clk 0:00:03.2]} 30. Rc1 {[%clk 0:00:01.3]}
30... f6 {[%clk 0:00:03.7]} 31. Kg1 {[%clk 0:00:01.8]} 31... Kf7 {[%clk
0:00:04.3]} 32. Kf1 {[%clk 0:00:02.7]} 32... Ke6 {[%clk 0:00:05]} 33. Ke2 {[%clk
0:00:03.4]} 33... Kd5 {[%clk 0:00:05.7]} 34. Rd1 {[%clk 0:00:03.8]} 34... e4
{[%clk 0:00:05.1]} 35. c3 {[%clk 0:00:04]} 35... d3+ {[%clk 0:00:05.1]} 36. Ke3
{[%clk 0:00:04.7]} 36... f5 {[%clk 0:00:04.8]} 37. g4 {[%clk 0:00:04.3]} 37...
Rf8 {[%clk 0:00:02.2]} 38. Rf1 {[%clk 0:00:03.6]} 38... f4+ {[%clk 0:00:02.6]}
39. Kd2 {[%clk 0:00:01.9]} 39... e3+ {[%clk 0:00:03]} 0-1